fUSD/lending_fUSD_20240427
["ID","MTS","AMOUNT","RATE_DAILY","PERIOD"]
[323714654,1714185042756,-552.40618132,0.00012779,2]
[323714655,1714185042766,-500.0,0.00012779,2]
[323714656,1714185042775,-500.0,0.00012779,2]
[323714657,1714185042784,-500.0,0.00012779,2]
[323714658,1714185042796,-262.587848,0.00012779,2]
[323714659,1714185042805,-500.0,0.00012779,2]
[323714660,1714185042814,-500.0,0.00012779,2]
[323714661,1714185042823,-500.0,0.00012779,2]
[323714662,1714185042832,-500.0,0.00012779,2]
[323714663,1714185042841,-500.0,0.00012779,2]
[323714664,1714185042850,-500.0,0.00012779,2]
[323714665,1714185042860,-210.65968199,0.00012779,2]
[323714666,1714185042869,-500.0,0.00012779,2]
[323714667,1714185042878,-510.20472064,0.00012779,2]
[323714668,1714185042887,-1013.061564,0.00012779,2]
[323714669,1714185042897,-503.33194777,0.00012779,2]
[323714670,1714185042906,-1013.061564,0.00012779,2]
[323714671,1714185042914,-500.0,0.00012779,2]
[323714672,1714185042926,-500.0,0.00012779,2]
[323714673,1714185042935,-744.27,0.00012779,2]
[323714674,1714185042944,-504.50584437,0.00012779,2]
[323714675,1714185042953,-500.0,0.00012779,2]
[323714676,1714185042962,-500.0,0.00012779,2]
[323714677,1714185042972,-500.0,0.00012779,2]
[323714678,1714185042983,-500.0,0.00012779,2]
[323714679,1714185042993,-500.0,0.00012779,2]
[323714680,1714185043002,-500.0,0.00012779,2]
[323714681,1714185043011,-500.0,0.00012779,2]
[323714682,1714185043021,-338.57853943,0.00012779,2]
[323714683,1714185043030,-500.0,0.00012779,2]
[323714684,1714185043038,-500.0,0.00012779,2]
[323714685,1714185043047,-559.93,0.00012779,2]
[323714686,1714185043056,-500.0,0.00012779,2]
[323714687,1714185043065,-503.06043146,0.00012779,2]
[323714688,1714185043074,-500.0,0.00012779,2]
[323714689,1714185043083,-601.66359189,0.00012779,2]
[323714690,1714185043092,-1433.57,0.00012779,2]
[323714691,1714185043102,-232.91135032,0.00012779,2]
[323714692,1714185043111,-500.0,0.00012779,2]
[323714693,1714185043121,-500.0,0.00012779,2]
[323714694,1714185043130,-503.76760202,0.00012779,2]
[323714695,1714185043143,-500.0,0.00012779,2]
[323714696,1714185043152,-500.0,0.00012779,2]
[323714697,1714185043162,-500.0,0.00012779,2]
[323714698,1714185043171,-518.58417429,0.00012779,2]
[323714699,1714185043180,-500.0,0.00012779,2]
[323714700,1714185043190,-512.39743883,0.00012779,2]
[323714701,1714185043199,-500.0,0.00012779,2]
[323714702,1714185043208,-508.14627577,0.00012779,2]
[323714703,1714185043218,-2137.46,0.00012779,2]
[323714704,1714185043229,-500.0,0.00012779,2]
[323714705,1714185043238,-500.0,0.00012779,2]
[323714706,1714185043247,-500.0,0.00012779,2]
[323714707,1714185043257,-136847.43355773,0.0001278,2]
[323714708,1714185043334,-500.0,0.00012777,2]
[323714709,1714185043344,-500.0,0.00012777,2]
[323714710,1714185043354,-500.0,0.00012778,2]
[323714711,1714185043363,-223.69836797,0.0001278,2]
[323714712,1714185043390,-1054.72865373,0.0001278,2]
[323714713,1714185043409,-126068.00000019,0.0001278,2]
[323714714,1714185043443,-1546.43771541,0.0001278,2]
[323714715,1714185044045,-508.49110427,0.00012777,2]
[323714716,1714185044055,-147.58709915,0.0001278,2]
[323714717,1714185044111,-333.3976716,0.0001278,2]
[323714718,1714185044140,-3152.00384,0.0001278,2]
[323714719,1714185044153,-466.145,0.0001278,2]
[323714720,1714185044164,-3021.75833148,0.0001278,2]
[323714721,1714185044175,-906.66,0.0001278,2]
[323714722,1714185044529,-712.22,0.00011899,2]
[323714723,1714185044539,-1805.39172,0.0001278,2]
[323714724,1714185044555,-475.67259041,0.0001278,2]
[323714725,1714185044567,-4592.83506176,0.0001278,2]
[323714731,1714185045688,-155.0,0.00012777,2]
[323714732,1714185045698,-205.65000001,0.0001278,2]
[323714733,1714185045798,-1510.0,0.0001278,2]
[323714734,1714185045810,-132396.45828894,0.0001278,2]
[323714735,1714185308755,708.6925007,0.00025,120]
[323714747,1714186231731,-310.76,9.699e-05,2]
[323714748,1714186231740,-155.0,0.0001,2]
[323714749,1714186231750,-155.0,0.000109,2]
[323714750,1714186231760,-1250.0,0.00011,2]
[323714751,1714186231769,-161.10137834,0.000114,2]
[323714752,1714186231779,-517.41884376,0.000115,2]
[323714753,1714186231788,-1276.18,0.00011527,2]
[323714754,1714186231798,-427.33,0.00011559,2]
[323714755,1714186231807,-199.9,0.00011587,2]
[323714756,1714186231816,-355.59,0.00011659,2]
[323714757,1714186231826,-150.0,0.00011726,2]
[323714758,1714186231835,-499.99,0.00011726,2]
[323714759,1714186231844,-177.65,0.00011769,2]
[323714760,1714186231854,-1200.11,0.00011769,2]
[323714761,1714186231864,-8256.53,0.00011769,2]
[323714762,1714186231874,-15094.97,0.00011769,2]
[323714763,1714186231883,-19999.99,0.00011769,2]
[323714764,1714186231892,-820.47,0.00011924,2]
[323714765,1714186231901,-310.76,0.00011963,2]
[323714766,1714186231910,-300.0,0.00011978,2]
[323714767,1714186231919,-150.0,0.00011978,2]
[323714768,1714186231929,-15009.81749897,0.00012,2]
[323714769,1714186231938,-1748.23425053,0.00012,2]
[323714770,1714186231947,-5000.0,0.00012,2]
[323714771,1714186231956,-409.2085642,0.00012,2]
[323714772,1714186231965,-151.48,0.00012278,2]
[323714773,1714186231978,-536.0,0.00012328,2]
[323714774,1714186231987,-354.9359,0.0001258,2]
[323714775,1714186231996,-7500.0,0.0001258,2]
[323714776,1714186232005,-637.58193506,0.0001258,2]
[323714777,1714186232014,-312.93431556,0.0001258,2]
[323714778,1714186232023,-637.58193495,0.00012603,2]
[323714779,1714186232032,-637.58193495,0.00012626,2]
[323714780,1714186232041,-637.58193495,0.00012649,2]
[323714781,1714186232053,-2181.4237719,0.00012649,2]
[323714782,1714186232062,-637.58193495,0.00012671,2]
[323714783,1714186232071,-334.6985,0.00012677,2]
[323714784,1714186232081,-1667.089,0.00012679,2]
[323714785,1714186232091,-500.0,0.00012679,2]
[323714786,1714186232101,-500.0,0.00012679,2]
[323714787,1714186232110,-500.0,0.00012679,2]
[323714789,1714186232119,-500.0,0.00012679,2]
[323714790,1714186232128,-500.0,0.00012679,2]
[323714792,1714186232137,-500.0,0.00012679,2]
[323714794,1714186232146,-500.0,0.00012679,2]
[323714796,1714186232155,-500.0,0.00012679,2]
[323714797,1714186232165,-500.0,0.00012679,2]
[323714798,1714186232174,-500.0,0.00012679,2]
[323714799,1714186232183,-500.0,0.00012679,2]
[323714800,1714186232193,-500.0,0.00012679,2]
[323714801,1714186232204,-500.0,0.00012679,2]
[323714802,1714186232214,-500.0,0.00012679,2]
[323714803,1714186232226,-500.0,0.00012679,2]
[323714804,1714186232235,-500.0,0.00012679,2]
[323714805,1714186232244,-551.36888062,0.00012679,2]
[323714806,1714186232253,-810.35,0.00012679,2]
[323714807,1714186232263,-500.0,0.00012679,2]
[323714808,1714186232274,-500.0,0.00012679,2]
[323714809,1714186232283,-500.0,0.00012679,2]
[323714810,1714186232292,-500.0,0.00012679,2]
[323714811,1714186232302,-500.0,0.00012679,2]
[323714812,1714186232311,-500.0,0.00012679,2]
[323714813,1714186232320,-500.0,0.00012679,2]
[323714814,1714186232329,-500.0,0.00012679,2]
[323714815,1714186232339,-871.09,0.00012679,2]
[323714816,1714186232349,-294.23330175,0.00012679,2]
[323714817,1714186232358,-500.0,0.00012679,2]
[323714818,1714186232367,-150.0,0.00012679,2]
[323714819,1714186232376,-500.0,0.00012679,2]
[323714820,1714186232385,-500.0,0.00012679,2]
[323714821,1714186232394,-500.0,0.00012679,2]
[323714822,1714186232404,-415.35372013,0.00012679,2]
[323714823,1714186232414,-518.31766427,0.00012679,2]
[323714824,1714186232423,-343.98247682,0.00012679,2]
[323714825,1714186232432,-500.0,0.00012679,2]
[323714826,1714186232441,-505.86176377,0.00012679,2]
[323714827,1714186232450,-500.0,0.00012679,2]
[323714828,1714186232459,-500.0,0.00012679,2]
[323714829,1714186232472,-500.0,0.00012679,2]
[323714830,1714186232482,-500.0,0.00012679,2]
[323714831,1714186232491,-500.0,0.00012679,2]
[323714832,1714186232500,-526.03336676,0.00012679,2]
[323714833,1714186232509,-500.0,0.00012679,2]
[323714834,1714186232519,-500.0,0.00012679,2]
[323714835,1714186232528,-500.0,0.00012679,2]
[323714836,1714186232537,-500.0,0.00012679,2]
[323714837,1714186232546,-500.0,0.00012679,2]
[323714838,1714186232556,-500.0,0.00012679,2]
[323714839,1714186232566,-500.0,0.00012679,2]
[323714840,1714186232575,-509.57797981,0.00012679,2]
[323714841,1714186232585,-183.2,0.00012679,2]
[323714842,1714186232594,-500.0,0.00012679,2]
[323714843,1714186232603,-500.0,0.00012679,2]
[323714844,1714186232612,-181.87291549,0.00012679,2]
[323714845,1714186232622,-515.62134456,0.00012679,2]
[323714846,1714186232631,-315.41618437,0.00012679,2]
[323714847,1714186232640,-500.0,0.00012679,2]
[323714848,1714186232649,-520.13500166,0.00012679,2]
[323714849,1714186232658,-500.0,0.00012679,2]
[323714850,1714186232668,-511.96747747,0.00012679,2]
[323714851,1714186232678,-500.0,0.00012679,2]
[323714852,1714186232687,-500.0,0.00012679,2]
[323714853,1714186232697,-406.58340323,0.00012679,2]
[323714854,1714186232706,-238.84603307,0.00012679,2]
[323714855,1714186232716,-500.0,0.00012679,2]
[323714856,1714186232728,-500.0,0.00012679,2]
[323714857,1714186232737,-500.0,0.00012679,2]
[323714858,1714186232747,-500.0,0.00012679,2]
[323714859,1714186232756,-4833.29,0.00012679,2]
[323714860,1714186232765,-500.0,0.00012679,2]
[323714861,1714186232774,-500.0,0.00012679,2]
[323714862,1714186232784,-508.44268073,0.00012679,2]
[323714863,1714186232793,-500.0,0.00012679,2]
[323714864,1714186232803,-461.75331296,0.00012679,2]
[323714865,1714186232813,-534.22849828,0.00012679,2]
[323714866,1714186232822,-500.0,0.00012679,2]
[323714867,1714186232831,-500.0,0.00012679,2]
[323714868,1714186232841,-500.0,0.00012679,2]
[323714869,1714186232850,-341.40228563,0.00012679,2]
[323714870,1714186232859,-438.72351019,0.00012679,2]
[323714871,1714186232868,-500.0,0.00012679,2]
[323714872,1714186232877,-500.0,0.00012679,2]
[323714873,1714186232886,-500.0,0.00012679,2]
[323714874,1714186232897,-500.0,0.00012679,2]
[323714875,1714186232906,-500.0,0.00012679,2]
[323714876,1714186232915,-4875.8,0.00012679,2]
[323714877,1714186232924,-1789.81,0.00012679,2]
[323714878,1714186232933,-500.0,0.00012679,2]
[323714879,1714186232942,-806.58,0.00012679,2]
[323714880,1714186232952,-500.0,0.00012679,2]
[323714881,1714186232961,-500.0,0.00012679,2]
[323714882,1714186232972,-578.34,0.00012679,2]
[323714883,1714186232981,-500.0,0.00012679,2]
[323714884,1714186232990,-230.41176415,0.00012679,2]
[323714885,1714186232999,-500.0,0.00012679,2]
[323714886,1714186233009,-525.41464446,0.00012679,2]
[323714887,1714186233018,-500.0,0.00012679,2]
[323714888,1714186233028,-500.0,0.00012679,2]
[323714889,1714186233038,-500.0,0.00012679,2]
[323714890,1714186233047,-500.0,0.00012679,2]
[323714891,1714186233057,-500.0,0.00012679,2]
[323714892,1714186233066,-500.0,0.00012679,2]
[323714893,1714186233076,-506.16820912,0.00012679,2]
[323714894,1714186233086,-505.00312854,0.00012679,2]
[323714895,1714186233097,-500.0,0.00012679,2]
[323714896,1714186233107,-500.0,0.00012679,2]
[323714897,1714186233115,-500.0,0.00012679,2]
[323714898,1714186233125,-1156.82,0.00012679,2]
[323714899,1714186233134,-1820.34,0.00012679,2]
[323714900,1714186233143,-500.0,0.00012679,2]
[323714901,1714186233152,-500.0,0.00012679,2]
[323714902,1714186233161,-500.0,0.00012679,2]
[323714903,1714186233170,-500.0,0.00012679,2]
[323714904,1714186233179,-500.0,0.00012679,2]
[323714905,1714186233189,-500.0,0.00012679,2]
[323714906,1714186233198,-500.0,0.00012679,2]
[323714907,1714186233207,-500.0,0.00012679,2]
[323714908,1714186233217,-500.0,0.00012679,2]
[323714909,1714186233228,-500.0,0.00012679,2]
[323714910,1714186233238,-520.13459674,0.00012679,2]
[323714911,1714186233247,-500.0,0.00012679,2]
[323714912,1714186233257,-590.10072698,0.00012679,2]
[323714913,1714186233267,-501.62583404,0.00012679,2]
[323714914,1714186233276,-1083.28,0.00012679,2]
[323714915,1714186233285,-500.0,0.00012679,2]
[323714916,1714186233295,-500.0,0.00012679,2]
[323714917,1714186233304,-500.0,0.00012679,2]
[323714918,1714186233315,-500.0,0.00012679,2]
[323714919,1714186233324,-500.0,0.00012679,2]
[323714920,1714186233334,-500.0,0.00012679,2]
[323714921,1714186233344,-648.42067159,0.00012679,2]
[323714922,1714186233353,-501.16,0.00012679,2]
[323714923,1714186233363,-500.0,0.00012679,2]
[323714924,1714186233375,-500.0,0.00012679,2]
[323714925,1714186233384,-309.52707337,0.00012679,2]
[323714926,1714186233394,-500.0,0.00012679,2]
[323714927,1714186233403,-500.0,0.00012679,2]
[323714928,1714186233414,-510.84075101,0.00012679,2]
[323714929,1714186233423,-500.0,0.00012679,2]
[323714930,1714186233433,-500.0,0.00012679,2]
[323714931,1714186233442,-500.0,0.00012679,2]
[323714932,1714186233451,-500.0,0.00012679,2]
[323714933,1714186233461,-593.57129022,0.00012679,2]
[323714934,1714186233472,-512.63228416,0.00012679,2]
[323714935,1714186233484,-500.0,0.00012679,2]
[323714936,1714186233493,-500.0,0.00012679,2]
[323714937,1714186233503,-504.94692457,0.00012679,2]
[323714938,1714186233513,-500.0,0.00012679,2]
[323714939,1714186233524,-500.0,0.00012679,2]
[323714940,1714186233533,-511.27516486,0.00012679,2]
[323714941,1714186233544,-500.0,0.00012679,2]
[323714942,1714186233556,-512.94736288,0.00012679,2]
[323714943,1714186233566,-509.39487731,0.00012679,2]
[323714944,1714186233575,-500.0,0.00012679,2]
[323714945,1714186233584,-500.0,0.00012679,2]
[323714946,1714186233594,-520.88544835,0.00012679,2]
[323714947,1714186233603,-288.14648618,0.00012679,2]
[323714948,1714186233612,-500.0,0.00012679,2]
[323714949,1714186233621,-552.33,0.00012679,2]
[323714950,1714186233630,-500.0,0.00012679,2]
[323714951,1714186233639,-500.0,0.00012679,2]
[323714952,1714186233648,-500.0,0.00012679,2]
[323714953,1714186233657,-500.0,0.00012679,2]
[323714954,1714186233666,-500.0,0.00012679,2]
[323714955,1714186233676,-500.0,0.00012679,2]
[323714956,1714186233685,-756.2,0.00012679,2]
[323714957,1714186233695,-489.32343031,0.00012679,2]
[323714958,1714186233704,-500.0,0.00012679,2]
[323714959,1714186233714,-500.0,0.00012679,2]
[323714960,1714186233723,-867.24,0.00012679,2]
[323714961,1714186233733,-500.0,0.00012679,2]
[323714962,1714186233742,-500.0,0.00012679,2]
[323714963,1714186233752,-500.0,0.00012679,2]
[323714964,1714186233761,-500.0,0.00012679,2]
[323714965,1714186233771,-500.0,0.00012679,2]
[323714966,1714186233780,-500.0,0.00012679,2]
[323714967,1714186233790,-234.72532928,0.00012679,2]
[323714968,1714186233799,-841.91,0.00012679,2]
[323714969,1714186233809,-521.03,0.00012679,2]
[323714970,1714186233818,-500.0,0.00012679,2]
[323714971,1714186233827,-505.57168197,0.00012679,2]
[323714972,1714186233837,-511.59322903,0.00012679,2]
[323714973,1714186233847,-500.0,0.00012679,2]
[323714974,1714186233857,-654.77,0.00012679,2]
[323714975,1714186233867,-500.0,0.00012679,2]
[323714976,1714186233879,-500.0,0.00012679,2]
[323714977,1714186233888,-500.0,0.00012679,2]
[323714978,1714186233897,-500.0,0.00012679,2]
[323714979,1714186233906,-592.68925846,0.00012679,2]
[323714980,1714186233916,-500.0,0.00012679,2]
[323714981,1714186233925,-500.0,0.00012679,2]
[323714982,1714186233934,-500.0,0.00012679,2]
[323714983,1714186233943,-500.0,0.00012679,2]
[323714984,1714186233952,-500.0,0.00012679,2]
[323714985,1714186233962,-500.0,0.00012679,2]
[323714986,1714186233971,-500.0,0.00012679,2]
[323714987,1714186233980,-1217.98,0.00012679,2]
[323714988,1714186233990,-500.0,0.00012679,2]
[323714989,1714186233999,-500.0,0.00012679,2]
[323714990,1714186234008,-500.0,0.00012679,2]
[323714991,1714186234017,-500.0,0.00012679,2]
[323714992,1714186234026,-888.3,0.00012679,2]
[323714993,1714186234036,-500.0,0.00012679,2]
[323714994,1714186234046,-500.0,0.00012679,2]
[323714995,1714186234056,-521.2287858,0.00012679,2]
[323714996,1714186234066,-500.0,0.00012679,2]
[323714997,1714186234075,-500.0,0.00012679,2]
[323714998,1714186234084,-500.0,0.00012679,2]
[323714999,1714186234095,-354.81464567,0.00012679,2]
[323715000,1714186234104,-1191.85,0.00012679,2]
[323715001,1714186234115,-500.0,0.00012679,2]
[323715002,1714186234124,-500.0,0.00012679,2]
[323715003,1714186234134,-500.0,0.00012679,2]
[323715004,1714186234143,-1401.77,0.00012679,2]
[323715005,1714186234152,-648.88542958,0.00012679,2]
[323715006,1714186234160,-1145.32,0.00012679,2]
[323715007,1714186234171,-500.0,0.00012679,2]
[323715008,1714186234180,-500.0,0.00012679,2]
[323715009,1714186234190,-2615.79,0.00012679,2]
[323715010,1714186234200,-571.57,0.00012679,2]
[323715011,1714186234210,-500.0,0.00012679,2]
[323715012,1714186234219,-1137.74,0.00012679,2]
[323715013,1714186234231,-507.07516764,0.00012679,2]
[323715014,1714186234240,-500.0,0.00012679,2]
[323715015,1714186234252,-500.0,0.00012679,2]
[323715016,1714186234261,-832.15,0.00012679,2]
[323715017,1714186234271,-1205.46,0.00012679,2]
[323715018,1714186234280,-296.75789857,0.00012679,2]
[323715019,1714186234290,-500.0,0.00012679,2]
[323715020,1714186234301,-500.0,0.00012679,2]
[323715021,1714186234311,-500.0,0.00012679,2]
[323715022,1714186234322,-500.0,0.00012679,2]
[323715023,1714186234331,-517.43251868,0.00012679,2]
[323715024,1714186234340,-500.0,0.00012679,2]
[323715025,1714186234349,-500.0,0.00012679,2]
[323715026,1714186234358,-500.0,0.00012679,2]
[323715027,1714186234367,-500.0,0.00012679,2]
[323715028,1714186234376,-517.51516404,0.00012679,2]
[323715029,1714186234385,-500.0,0.00012679,2]
[323715030,1714186234396,-500.0,0.00012679,2]
[323715031,1714186234405,-500.0,0.00012679,2]
[323715032,1714186234414,-580.33094645,0.00012679,2]
[323715033,1714186234423,-500.0,0.00012679,2]
[323715034,1714186234432,-500.0,0.00012679,2]
[323715035,1714186234441,-427.91344437,0.00012679,2]
[323715036,1714186234687,-72.08655563,0.00012679,2]
[323715037,1714186234697,-500.0,0.00012679,2]
[323715038,1714186234706,-371.89299953,0.00012679,2]
[323715039,1714186234740,-128.10700047,0.00012679,2]
[323715040,1714186234750,-298.53299957,0.00012679,2]
[323715041,1714186234762,-201.46700043,0.00012679,2]
[323715042,1714186234771,-1587.81,0.00012679,2]
[323715043,1714186234781,-500.0,0.00012679,2]
[323715044,1714186234790,-555.1,0.00012679,2]
[323715045,1714186234800,-333.32947101,0.00012679,2]
[323715046,1714186234813,-216.42010863,0.00012679,2]
[323715047,1714186234823,-500.0,0.00012679,2]
[323715048,1714186234834,-500.0,0.00012679,2]
[323715049,1714186234843,-500.0,0.00012679,2]
[323715050,1714186234852,-528.48,0.00012679,2]
[323715051,1714186234861,-500.0,0.00012679,2]
[323715052,1714186234871,-500.0,0.00012679,2]
[323715053,1714186234880,-500.0,0.00012679,2]
[323715054,1714186234890,-500.0,0.00012679,2]
[323715055,1714186234898,-107.16863287,0.00012679,2]
[323715056,1714186234924,-392.83136713,0.00012679,2]
[323715057,1714186234934,-500.0,0.00012679,2]
[323715058,1714186234944,-76.9169175,0.00012679,2]
[323715059,1714186235166,-423.0830825,0.00012679,2]
[323715060,1714186235177,-500.0,0.00012679,2]
[323715061,1714186235187,-567.26083093,0.00012679,2]
[323715062,1714186235197,-196.77323725,0.00012679,2]
[323715063,1714186235209,-312.63390212,0.00012679,2]
[323715064,1714186235218,-500.0,0.00012679,2]
[323715065,1714186235229,-500.0,0.00012679,2]
[323715066,1714186235238,-172.74867458,0.00012679,2]
[323715067,1714186235249,-403.73132542,0.00012679,2]
[323715068,1714186235259,-2032.29321659,0.0001268,2]
[323715069,1714186235268,-3362.7735,0.0001268,2]
[323715070,1714186235278,-53621.03734083,0.0001268,2]
[323715071,1714186235289,-444.06,0.0001268,2]
[323715072,1714186235308,-413.34477165,0.0001268,2]
[323715073,1714186235319,-3334.9492906,0.0001268,2]
[323715074,1714186235345,-1373.27,0.0001268,2]
[323715098,1714186238177,-464.08855751,0.0001258,2]
[323715099,1714186238187,-500.0,0.00012679,2]
[323715100,1714186238199,-500.0,0.00012679,2]
[323715101,1714186238208,-1046.90471717,0.0001268,2]
[323715138,1714186239846,-500.0,0.00012679,2]
[323715140,1714186239855,-2001.53500004,0.00012679,2]
[323715161,1714186240061,-252.668328,0.00012679,2]
[323715178,1714186240224,-1422.79667196,0.00012679,2]
[323715180,1714186240236,-4672.64,0.00012679,2]
[323715182,1714186240246,-4631.9,0.00012679,2]
[323715184,1714186240255,-1899.26332804,0.0001268,2]
[323715260,1714186243168,-500.0,0.00012679,2]
[323715261,1714186243177,-6457.45242,0.0001268,2]
[323715265,1714186245734,-1748.23425053,0.00012,2]
[323715266,1714186245744,-500.0,0.00012679,2]
[323715267,1714186245753,-509.92057695,0.00012679,2]
[323715268,1714186245763,-631.67517252,0.0001268,2]
[323715269,1714186245788,-8689.42928587,0.0001268,2]
[323715270,1714186245799,-335.30570427,0.0001268,2]
[323715271,1714186245900,-273.31193874,0.0001268,2]
[323715272,1714186245994,-383.84333031,0.0001268,2]
[323715273,1714186246003,-107.09217484,0.0001268,2]
[323715274,1714186246014,-632.25287615,0.0001268,2]
[323715275,1714186246315,-3665.44300793,0.0001268,2]
[323715306,1714187432005,-295.15,9.685e-05,2]
[323715307,1714187432015,-155.0,0.0001,2]
[323715308,1714187432024,-155.0,0.000109,2]
[323715309,1714187432034,-200.0,0.00011,2]
[323715310,1714187432047,-304.65142368,0.00011,2]
[323715311,1714187432169,-697.7402914,0.00011,2]
[323715312,1714187432181,-247.60828492,0.00011,2]
[323715313,1714187432190,-159.92,0.0001145,2]
[323715314,1714187432199,-1089.24936975,0.00011528,2]
[323715355,1714187438076,-427.33773077,0.0001,2]
[323715357,1714187438085,-83.91063025,0.00011528,2]
[323715359,1714187438095,-341.86,0.00011546,2]
[323715361,1714187438105,-250.0,0.00011573,2]
[323715363,1714187438115,-177.65,0.00011612,2]
[323715365,1714187438126,-484.48,0.00011657,2]
[323715367,1714187438136,-150.0,0.00011726,2]
[323715369,1714187438146,-169.02,0.00011815,2]
[323715371,1714187438156,-295.15,0.00011949,2]
[323715372,1714187438166,-150.57,0.0001198,2]
[323715373,1714187438176,-419.3,0.0001198,2]
[323715374,1714187438186,-151.18,0.0001198,2]
[323715375,1714187438195,-150.0,0.0001198,2]
[323715376,1714187438205,-150.0,0.0001198,2]
[323715377,1714187438215,-15001.17923307,0.00012,2]
[323715378,1714187438226,-1748.23425053,0.00012,2]
[323715379,1714187438237,-303.60500339,0.00012,2]
[323715380,1714187438249,-1000.0,0.00012,2]
[323715381,1714187438258,-409.2085642,0.00012,2]
[323715382,1714187438268,-150.0,0.00012052,2]
[323715383,1714187438279,-150.0,0.00012052,2]
[323715384,1714187438288,-150.0,0.00012252,2]
[323715385,1714187438297,-5000.0,0.00012499,2]
[323715386,1714187438308,-1000.0,0.000125,2]
[323715387,1714187438321,-470.4090219,0.00012578,2]
[323715388,1714187438332,-7500.0,0.00012579,2]
[323715389,1714187438343,-2011.35361805,0.0001258,2]
[323715391,1714187438352,-1496.7777,0.0001258,2]
[323715392,1714187438362,-177.06517047,0.0001258,2]
[323715393,1714187438373,-174.49859886,0.0001258,2]
[323715394,1714187438382,-208.62287704,0.0001258,2]
[323715395,1714187438391,-425.0546233,0.0001258,2]
[323715396,1714187438400,-425.0546233,0.00012603,2]
[323715397,1714187438410,-2011.35361795,0.00012609,2]
[323715398,1714187438421,-425.0546233,0.00012626,2]
[323715399,1714187438433,-2011.35361795,0.00012638,2]
[323715400,1714187438444,-425.0546233,0.00012649,2]
[323715401,1714187438455,-2011.35361795,0.00012667,2]
[323715402,1714187438466,-3420.09936281,0.00012677,2]
[323715403,1714187438477,-500.0,0.00012678,2]
[323715404,1714187438488,-500.0,0.00012678,2]
[323715405,1714187438500,-1715.24,0.00012678,2]
[323715406,1714187438511,-772.97,0.00012678,2]
[323715407,1714187438521,-500.0,0.00012678,2]
[323715408,1714187438531,-500.0,0.00012678,2]
[323715409,1714187438540,-1765.33,0.00012678,2]
[323715410,1714187438550,-955.15,0.00012678,2]
[323715411,1714187438560,-500.0,0.00012678,2]
[323715412,1714187438571,-500.0,0.00012678,2]
[323715413,1714187438582,-500.0,0.00012678,2]
[323715414,1714187438591,-1072.62,0.00012678,2]
[323715415,1714187438600,-717.16,0.00012678,2]
[323715416,1714187438610,-500.0,0.00012678,2]
[323715417,1714187438622,-500.0,0.00012678,2]
[323715418,1714187438634,-500.0,0.00012678,2]
[323715419,1714187438643,-500.0,0.00012678,2]
[323715420,1714187438653,-500.0,0.00012678,2]
[323715421,1714187438662,-500.0,0.00012678,2]
[323715422,1714187438673,-500.0,0.00012678,2]
[323715423,1714187438683,-500.0,0.00012678,2]
[323715424,1714187438697,-500.0,0.00012678,2]
[323715425,1714187438709,-500.0,0.00012678,2]
[323715426,1714187438720,-745.53,0.00012678,2]
[323715427,1714187438730,-500.0,0.00012678,2]
[323715428,1714187438740,-500.0,0.00012678,2]
[323715429,1714187438752,-827.67,0.00012678,2]